bitfinex/quotes_ETHUSD_20251024
["timestamp","ask_amount","ask_price","bid_price","bid_amount"]
[1761331763809,0.001,3914.9,3914.8,3.0091089]
[1761331764816,0.001,3914.9,3914.8,2.5544089]
[1761331765183,0.001,3914.9,3914.8,3.0091089]
[1761331765386,0.001,3914.9,3914.8,3.44556844]
[1761331765711,0.001,3914.9,3914.8,3.90026844]
[1761331768347,0.001,3914.9,3914.8,3.44556844]
[1761331770948,0.001,3914.9,3914.8,3.90026844]
[1761331777836,0.001,3914.9,3914.8,3.44556844]
[1761331778037,0.001,3914.9,3914.8,3.89186844]
[1761331784339,0.001,3914.9,3914.8,3.44556844]
[1761331785438,0.001,3914.9,3914.8,2.5544089]
[1761331794189,0.1945,3914.9,3914.2,0.90643428]
[1761331794391,0.1945,3914.9,3914.8,2.5544089]
[1761331794573,0.001,3914.9,3914.8,2.5544089]
[1761331797410,0.2945,3914.9,3914.8,2.5544089]
[1761331798024,0.1927,3914.9,3914.8,2.5544089]
[1761331798515,0.001,3914.9,3914.8,2.5544089]
[1761331804226,0.001,3914.9,3914.8,2.6824089]
[1761331804432,0.001,3914.9,3914.8,2.78471186]
[1761331808453,0.1945,3914.9,3914.8,2.6824089]
[1761331808631,0.2944,3914.9,3914.8,2.6824089]
[1761331808940,0.2944,3914.9,3914.1,0.002]
[1761331808941,0.1945,3914.9,3914.1,0.002]
[1761331809145,0.1945,3914.9,3914.2,3.00830047]
[1761331809445,0.001,3914.9,3914.8,7.64642697]
[1761331809653,0.001,3914.9,3914.8,9.65512697]
[1761331809821,0.001,3914.9,3914.8,11.28863166]
[1761331810022,0.001,3915.3,3914.8,11.28863166]
[1761331810023,0.001,3915.3,3915.2,7.646166]
[1761331810231,0.001,3915.3,3915.2,10.865166]
[1761331810427,0.001,3915.3,3915.2,12.22901343]
[1761331810626,0.001,3915.3,3915.2,12.33128474]
[1761331810826,0.001,3915.3,3915.2,14.13455815]
[1761331811241,0.001,3915.3,3915.2,8.13219265]
[1761331811479,0.001,3915.3,3915.2,4.91319265]
[1761331811644,0.001,3915.3,3915.2,6.01489265]
[1761331811987,0.001,3915.3,3915.2,0.10227131]
[1761331812146,0.001,3915.3,3914.4,2.55466993]
[1761331812147,0.1,3915.3,3914.4,2.55466993]
[1761331812349,0.1,3915.3,3915.0,2.55427259]
[1761331812550,0.001,3915.3,3915.1,2.55419938]
[1761331812849,0.001,3915.3,3914.6,0.2107]
[1761331812850,0.001,3915.3,3915.2,2.55414793]
[1761331813263,0.1,3915.3,3914.6,0.2107]
[1761331813680,0.1935,3914.7,3914.6,2.76523941]
[1761331814440,0.2934,3914.7,3914.6,2.55453941]
[1761331815469,0.2934,3914.7,3914.5,0.1935]
[1761331815658,0.0999,3914.6,3914.5,0.1935]
[1761331815867,0.0999,3914.6,3914.1,0.002]
[1761331816073,0.1935,3914.7,3914.1,0.002]
[1761331816271,0.1935,3914.7,3914.4,2.55460969]
[1761331816480,0.1935,3914.7,3914.1,0.002]
[1761331816481,0.0999,3914.6,3914.1,0.002]
[1761331816770,4.61688047,3914.2,3914.1,0.002]
[1761331816934,7.83888047,3914.2,3914.1,0.002]
[1761331817134,7.93878047,3914.2,3914.1,0.002]
[1761331817668,8.04114548,3914.2,3914.1,0.002]
[1761331818876,8.16914548,3914.2,3914.1,0.002]
[1761331819051,8.62942892,3914.2,3914.1,0.002]
[1761331819839,4.11045744,3913.5,3912.6,0.002]
[1761331820056,17.64749358,3913.5,3912.6,0.002]
[1761331820252,12.73987551,3913.5,3912.6,0.002]
[1761331821042,12.84225834,3913.5,3912.6,0.002]
[1761331821372,13.38080015,3913.5,3912.6,0.002]
[1761331822370,13.38080015,3913.5,3913.3,0.002]
[1761331822583,13.38080015,3913.5,3912.6,0.002]
[1761331822584,0.50688,3913.2,3912.6,0.002]
[1761331822742,9.70961671,3913.1,3912.6,0.002]
[1761331822943,9.80861671,3913.1,3912.6,0.002]
[1761331823251,10.26890015,3913.1,3912.6,0.002]
[1761331824680,10.37130316,3913.1,3912.6,0.002]
[1761331825378,12.28830316,3913.1,3912.6,0.002]
[1761331827399,15.51530316,3913.1,3912.6,0.002]
[1761331828303,10.42328509,3913.1,3912.6,0.002]
[1761331832607,10.55128509,3913.1,3912.6,0.002]
[1761331835988,4.61785989,3912.7,3912.6,0.002]
[1761331836189,13.16587796,3912.7,3912.6,0.002]
[1761331836621,13.26829251,3912.7,3912.6,0.002]
[1761331837824,8.17627444,3912.7,3912.6,0.002]
[1761331838030,4.21339444,3912.7,3912.6,0.002]
[1761331838322,13.12369595,3912.7,3912.6,0.002]
[1761331838624,13.63057595,3912.7,3912.6,0.002]
[1761331839012,13.72957595,3912.7,3912.6,0.002]
[1761331839737,1.06957799,3912.7,3912.6,0.002]
[1761331839890,1.06957799,3912.7,3912.6,0.4596]
[1761331839891,3.232,3912.7,3912.6,0.4596]
[1761331840092,8.32401807,3912.7,3912.6,0.002]
[1761331840499,13.04087796,3912.7,3912.6,0.002]
[1761331841038,12.94187796,3912.7,3912.6,0.002]
[1761331841547,13.04087796,3912.7,3912.6,0.002]
[1761331845472,13.72755121,3912.7,3912.6,0.002]
[1761331846165,13.82995186,3912.7,3912.6,0.002]
[1761331846367,13.14327861,3912.7,3912.6,0.002]
[1761331847371,14.06151437,3912.7,3912.6,0.002]
[1761331849098,13.14327861,3912.7,3912.6,0.002]
[1761331849796,13.27127861,3912.7,3912.6,0.002]
[1761331851390,14.64998945,3912.7,3912.6,0.002]
[1761331852691,13.27127861,3912.7,3912.6,0.002]
[1761331853483,14.65124167,3912.7,3912.6,0.002]
[1761331854968,13.27127861,3912.7,3912.6,0.002]
[1761331861438,13.27127861,3912.7,3912.1,0.002]
[1761331861439,4.61818653,3912.2,3912.1,0.002]
[1761331861637,12.9402046,3912.2,3912.1,0.002]
[1761331861909,18.16022267,3912.2,3912.1,0.002]
[1761331862076,18.36164535,3912.2,3912.1,0.002]
[1761331862677,18.36164535,3912.2,3911.3,0.002]
[1761331862678,4.61825187,3912.1,3911.3,0.002]
[1761331862900,4.71725187,3912.1,3911.3,0.002]
[1761331866518,6.09511311,3912.1,3911.3,0.002]
[1761331867117,5.99611311,3912.1,3911.3,0.002]
[1761331867288,12.48511311,3912.1,3911.3,0.4695]
[1761331868010,11.00825187,3912.1,3911.3,0.4695]
[1761331868413,11.10725187,3912.1,3911.3,0.4695]
[1761331868608,11.00825187,3912.1,3911.3,0.002]
[1761331868811,11.00825187,3912.1,3911.8,0.4669]
[1761331869017,12.38611311,3912.1,3911.8,0.002]
[1761331869191,12.38611311,3912.1,3911.3,0.002]
[1761331869192,4.61844791,3911.8,3911.3,0.002]
[1761331869523,14.70911826,3911.8,3911.3,0.002]
[1761331869833,14.80811826,3911.8,3911.3,0.002]
[1761331870227,14.70911826,3911.8,3911.3,0.002]
[1761331870520,14.70911826,3911.8,3911.7,0.4669]
[1761331871109,15.39769025,3911.8,3911.7,0.4669]
[1761331873328,14.70911826,3911.8,3911.7,0.4669]
[1761331873930,4.84527684,3911.8,3911.7,0.4669]
[1761331874232,4.84527684,3911.8,3911.7,3.02333326]
[1761331874233,0.73370893,3911.8,3911.7,3.02333326]
[1761331874431,3.96570893,3911.8,3911.7,3.02333326]
[1761331874633,3.96570893,3911.8,3911.7,0.4669]
[1761331877042,3.96570893,3911.8,3911.7,3.02333326]
[1761331877254,3.96570893,3911.8,3911.7,0.4669]
[1761331878955,3.96570893,3911.8,3911.7,3.02333326]
[1761331879154,3.96570893,3911.8,3911.7,3.37255659]
[1761331881348,3.96570893,3911.8,3911.7,4.14047304]
[1761331883127,3.96570893,3911.8,3911.7,1.58403978]
[1761331883328,3.96570893,3911.8,3911.7,0.4669]
[1761331883954,3.96570893,3911.8,3911.7,3.02333326]
[1761331889473,3.96570893,3911.8,3911.7,3.02333326]
[1761331891139,3.96670893,3911.8,3911.7,3.02333326]
[1761331891534,3.96670893,3911.8,3911.7,3.79125167]
[1761331892176,0.001,3911.8,3911.7,3.79125167]
[1761331892470,0.001,3911.8,3911.7,4.43902797]
[1761331892681,0.001,3911.8,3911.7,6.12222797]
[1761331892838,0.001,3912.1,3912.0,2.55623721]
[1761331893039,0.001,3912.1,3912.0,13.46639863]
[1761331893347,0.001,3913.8,3912.5,2.55591054]
[1761331893542,0.008,3913.6,3912.8,8.68167599]
[1761331893950,0.008,3913.6,3912.8,9.24892083]
[1761331895479,0.001,3913.8,3912.8,10.80412083]
[1761331895650,0.001,3913.8,3912.8,11.31100083]
[1761331897561,0.001,3913.8,3912.9,4.11084926]
[1761331897882,0.001,3913.8,3912.9,9.82386561]
[1761331898084,0.001,3913.8,3913.3,4.11058803]
[1761331898277,0.001,3913.8,3913.3,13.49110333]
[1761331898477,0.001,3913.8,3913.3,13.94014945]
[1761331898679,0.001,3914.9,3913.8,2.55506157]
[1761331898989,0.001,3914.9,3913.8,7.59376773]
[1761331899202,0.001,3914.9,3913.8,8.06836773]
[1761331899684,0.001,3914.9,3913.8,8.57524773]
[1761331900257,0.001,3915.3,3915.2,4.10934793]
[1761331900457,0.001,3915.3,3915.2,7.81494793]
[1761331900686,0.001,3915.3,3915.2,8.85186599]
[1761331900890,0.001,3915.3,3915.2,8.95414384]
[1761331901548,0.3,3916.9,3916.5,2.55330014]
[1761331901693,0.3,3916.9,3916.5,3.02790014]
[1761331902190,0.3,3916.9,3916.5,0.4746]
[1761331902435,0.3,3916.9,3916.5,6.26190014]
[1761331902731,0.3,3916.9,3915.9,2.55368232]
[1761331902732,0.4152,3916.9,3916.1,0.2266]
[1761331902935,2.96824099,3916.9,3916.1,0.2266]
[1761331903099,2.55311353,3916.8,3916.1,0.2266]
[1761331903293,1.2062,3916.9,3916.1,0.2266]
[1761331903500,1.3342,3916.9,3916.4,0.128]
[1761331904407,1.3342,3916.9,3916.4,2.68136477]
[1761331904724,1.3342,3916.9,3916.5,2.55330014]
[1761331905026,1.091,3916.9,3916.5,3.15590014]
[1761331905395,1.091,3916.9,3916.5,1.36957213]
[1761331905594,1.091,3916.9,3916.5,3.92287227]
[1761331906231,1.091,3916.9,3916.5,0.89497213]
[1761331906538,2.66425026,3916.6,3915.9,0.128]
[1761331906826,2.66425026,3916.6,3915.8,0.128]
[1761331906827,0.128,3916.4,3915.8,0.128]
[1761331907030,0.128,3916.4,3915.7,0.128]
[1761331907197,0.099,3916.3,3915.7,0.128]
[1761331907535,2.65243704,3916.3,3915.7,0.128]
[1761331907729,2.55349672,3916.2,3915.7,0.128]
[1761331907930,3.236,3916.1,3915.7,0.128]
[1761331908093,3.335,3916.1,3915.7,0.128]
[1761331908499,3.236,3916.1,3915.7,0.128]
[1761331910855,3.236,3916.1,3915.7,3.15639963]
[1761331911360,3.236,3916.1,3915.7,0.128]
[1761331912954,3.236,3916.1,3915.7,2.68180296]
[1761331914130,3.236,3916.1,3915.7,0.128]
[1761331915657,3.236,3916.1,3915.8,2.55374596]
[1761331916445,0.128,3916.2,3915.7,0.128]
[1761331916679,3.233,3916.1,3915.9,2.55363393]
[1761331916878,3.204,3916.0,3915.9,2.55363393]
[1761331917252,3.204,3916.0,3915.9,2.68163393]
[1761331925377,0.013,3916.6,3916.5,3.02330014]
[1761331936389,0.3,3916.9,3916.8,2.55310457]
[1761331936619,0.3,3916.9,3916.8,7.33830457]
[1761331936822,0.3,3916.9,3916.8,10.5340352]
[1761331937400,1e-08,3916.9,3916.8,10.5340352]
[1761331937598,1e-08,3916.9,3916.8,11.0409152]
[1761331938196,1e-08,3916.9,3916.8,7.6829152]
[1761331938584,1e-08,3916.9,3916.8,10.9139152]
[1761331940760,1e-08,3916.9,3916.8,7.6829152]
[1761331940934,1e-08,3916.9,3916.8,10.9149152]
[1761331941652,1e-08,3916.9,3916.8,7.6829152]
[1761331941819,1e-08,3916.9,3916.8,10.9159152]
[1761331942746,1e-08,3916.9,3916.8,10.9149152]
[1761331943423,1e-08,3916.9,3916.8,7.1760352]
[1761331943626,1e-08,3916.9,3916.8,10.4090352]
[1761331943824,0.00100001,3916.9,3916.8,10.4090352]
[1761331944023,0.00100001,3916.9,3916.8,10.9159152]
[1761331944545,0.00100001,3916.9,3916.8,7.1760352]
[1761331944751,0.00100001,3916.9,3916.8,10.4090352]
[1761331944942,0.00100001,3916.9,3916.8,10.4080352]
[1761331946332,0.00100001,3916.9,3916.8,5.78610457]
[1761331946840,0.00100001,3916.9,3916.8,2.55310457]
[1761331947416,0.00100001,3916.9,3916.8,2.57863561]
[1761331947749,0.00100001,3916.9,3916.8,2.55310457]
[1761331948051,0.00100001,3916.9,3916.8,5.78610457]
[1761331948550,0.00100001,3916.9,3916.8,2.68110457]
[1761331950352,0.00100001,3916.9,3916.8,3.57461348]
[1761331950649,0.00100001,3916.9,3916.8,5.59561348]
[1761331951155,0.00100001,3916.9,3916.8,8.36581348]
[1761331951641,0.00100001,3916.9,3916.8,5.91710457]
[1761331953136,0.00100001,3916.9,3916.8,2.68110457]
[1761331958370,0.11620001,3916.9,3916.8,2.68110457]
[1761331960745,0.11620001,3916.9,3916.8,2.68310457]
[1761331962781,0.21540001,3916.9,3916.8,2.68310457]
[1761331963077,0.11620001,3916.9,3916.8,0.13]
[1761331963277,0.21540001,3916.9,3916.8,0.13]
[1761331963449,0.21540001,3916.9,3916.8,0.002]
[1761331964777,0.34340001,3916.9,3916.8,0.002]
[1761331966879,2.8964394,3916.9,3916.8,0.002]
[1761331967851,0.34340001,3916.9,3916.8,0.002]
[1761331969203,0.00100001,3916.9,3916.8,0.002]
[1761331973786,0.00100001,3916.9,3916.8,2.55510457]
[1761331974160,0.00100001,3916.9,3916.8,0.002]
[1761331975655,0.00100001,3916.9,3916.8,0.13]
[1761331976289,0.00100001,3916.9,3916.8,2.68310457]
[1761331977813,0.00100001,3916.9,3916.8,3.12370457]
[1761331978192,0.00100001,3916.9,3916.8,0.13]
[1761331978397,0.00100001,3916.9,3916.8,2.68310457]
[1761331979681,0.00100001,3916.9,3916.8,0.13]
[1761331980882,0.00100001,3916.9,3916.8,0.002]
[1761331980883,2.7684394,3916.9,3916.8,0.002]
[1761331981087,2.8964394,3916.9,3916.8,0.002]
[1761331982917,0.34340001,3916.9,3916.8,0.002]
[1761331983416,2.8964394,3916.9,3916.8,0.002]
[1761331986707,9.51034347,3916.9,3916.8,0.002]
[1761331988830,8.90446347,3916.9,3916.8,0.002]
[1761331989047,9.00346347,3916.9,3916.8,0.002]
[1761331989205,9.51034347,3916.9,3916.8,0.002]
[1761331989542,11.75411546,3916.9,3916.8,0.002]
[1761331989741,11.06554347,3916.9,3916.8,0.002]
[1761331993746,11.98361565,3916.9,3916.8,0.002]
[1761331994043,12.08591547,3916.9,3916.8,0.002]
[1761331994213,11.98361565,3916.9,3916.8,0.002]
[1761331995449,11.06554347,3916.9,3916.8,0.002]
[1761331998772,6.0254394,3916.9,3916.8,0.002]
[1761331998983,8.0875194,3916.9,3916.8,0.002]
[1761331999563,1.68420001,3916.9,3916.8,0.002]
[1761331999750,3.22900001,3916.9,3916.8,0.002]
[1761332000775,3.22900001,3916.9,3916.8,0.4361]
[1761332001340,3.22900001,3916.9,3916.8,0.74783222]
[1761332001592,0.00100001,3916.9,3916.8,3.42893679]
[1761332001749,0.00100001,3916.9,3916.8,3.30093679]
[1761332004146,0.00100001,3916.9,3916.8,0.31373222]
[1761332004346,3.23000001,3916.9,3916.8,0.002]
[1761332004548,6.0384394,3916.9,3916.8,0.002]
[1761332004742,12.65234347,3916.9,3916.8,0.002]
[1761332004942,14.20754347,3916.9,3916.8,0.002]
[1761332005860,14.30984303,3916.9,3916.8,0.002]
[1761332007703,15.22589454,3916.9,3916.8,0.002]
[1761332008782,9.11887047,3916.9,3916.8,0.002]
[1761332008991,4.2607394,3916.9,3916.8,0.002]
[1761332009156,8.18069681,3916.9,3916.8,0.002]
[1761332009361,7.4937394,3916.9,3916.8,0.002]
[1761332009593,7.5976394,3916.9,3916.8,0.002]
[1761332009793,8.1045194,3916.9,3916.8,0.002]
[1761332011710,8.2325194,3916.9,3916.8,0.002]
[1761332013881,8.1286194,3916.9,3916.8,0.002]
[1761332016935,7.9771194,3916.9,3916.8,0.002]
[1761332018299,7.8471194,3916.9,3916.8,0.002]
[1761332020029,8.0036194,3916.9,3916.8,0.002]
[1761332020333,8.1026194,3916.9,3916.8,0.002]
[1761332020534,8.0036194,3916.9,3916.8,0.002]
[1761332020837,8.1026194,3916.9,3916.8,0.002]
[1761332024303,8.78957681,3916.9,3916.8,0.002]
[1761332024500,8.1026194,3916.9,3916.8,0.002]
[1761332024701,3.06018014,3916.5,3916.4,1e-08]
[1761332024906,23.7284047,3916.5,3916.4,1e-08]
[1761332025131,23.8274047,3916.5,3916.4,1e-08]
[1761332028222,23.9554047,3916.5,3916.4,1e-08]
[1761332028612,24.05772441,3916.5,3916.4,1e-08]
[1761332028835,15.66632426,3916.5,3916.4,1e-08]
[1761332033144,14.59759431,3916.5,3916.4,1e-08]
[1761332033350,14.18896615,3916.5,3916.4,1e-08]
[1761332036444,14.08664644,3916.5,3916.4,1e-08]
[1761332037529,10.85564644,3916.5,3916.4,1e-08]
[1761332037835,14.77402091,3916.5,3916.4,0.47120001]
[1761332038035,6.29118014,3916.5,3916.4,0.47120001]
[1761332038243,7.84638014,3916.5,3916.4,0.47120001]
[1761332039436,4.10850014,3916.5,3916.4,0.47120001]
[1761332039762,5.78330014,3916.5,3916.4,0.47120001]
[1761332042853,10.87371754,3916.5,3916.4,0.47120001]
[1761332043356,10.87471754,3916.5,3916.4,0.47120001]
[1761332045565,10.87471754,3916.5,3916.4,1e-08]
[1761332045875,13.03689754,3916.5,3916.4,1e-08]
[1761332046031,13.95343941,3916.5,3916.4,1e-08]
[1761332046235,13.03689754,3916.5,3916.4,1e-08]
[1761332046437,13.03689754,3916.5,3915.6,0.002]
[1761332046438,4.61590179,3915.7,3915.6,0.002]
[1761332046781,13.65327198,3915.7,3915.6,0.002]
[1761332047467,18.74368938,3915.7,3915.6,0.002]
[1761332047836,18.84368938,3915.7,3915.6,0.002]
[1761332048041,19.65903429,3915.7,3915.6,0.002]
[1761332048876,19.55903429,3915.7,3915.6,0.002]
[1761332049853,19.65903429,3915.7,3915.6,0.002]
[1761332052605,19.55903429,3915.7,3915.6,0.002]
[1761332053378,19.65903429,3915.7,3915.6,0.002]
[1761332054024,3.06089746,3915.4,3914.4,0.2194]
[1761332054318,13.34538732,3915.4,3914.5,0.4732]
[1761332054680,13.34538732,3915.4,3914.5,0.002]
[1761332054986,13.34538732,3915.4,3914.7,0.4712]
[1761332056422,13.44538732,3915.4,3914.5,0.002]
[1761332056971,14.36196623,3915.4,3914.5,0.002]
[1761332057510,13.44538732,3915.4,3914.5,0.002]
[1761332057885,2.55460467,3914.5,3914.4,0.6466]
[1761332058075,5.78460467,3914.5,3914.4,0.1754]
[1761332058713,5.78460467,3914.5,3914.4,0.6466]
[1761332059705,10.87502207,3914.5,3914.4,0.6466]
[1761332067706,5.0904174,3914.8,3914.4,0.6466]
[1761332067943,2.68253941,3914.6,3914.5,0.4712]
[1761332072051,2.68253941,3914.6,3914.2,0.4712]
[1761332072052,0.128,3914.6,3914.2,0.4712]
[1761332072216,2.5547352,3914.3,3914.2,0.4712]
[1761332072546,5.9097352,3914.3,3914.2,0.4712]
[1761332075356,5.9097352,3914.3,3913.7,0.3546]
[1761332075357,2.55506157,3913.8,3913.7,0.6978]
[1761332075666,10.87247897,3913.8,3913.7,0.6978]
[1761332077244,8.3174174,3913.8,3913.7,0.6978]
[1761332077550,10.87247897,3913.8,3913.7,0.6978]
[1761332081066,10.87247897,3913.8,3913.4,0.4657]
[1761332081365,5.0904174,3913.5,3913.4,0.4657]
[1761332081659,8.3174174,3913.5,3913.4,0.4657]
[1761332083369,0.68888553,3914.3,3913.4,0.4657]
[1761332083370,0.001,3914.5,3913.4,0.4657]
[1761332083540,5.0904174,3914.0,3913.4,0.4657]
[1761332083741,5.0904174,3913.7,3913.4,0.4657]
[1761332083952,3.228,3913.6,3913.4,0.4657]
[1761332090412,3.228,3913.6,3913.4,0.002]
[1761332090592,5.91124095,3913.6,3913.4,0.002]
[1761332090992,5.91124095,3913.6,3913.4,0.4657]
[1761332090993,3.356,3913.6,3913.4,0.4657]
[1761332094177,0.128,3913.6,3913.4,0.4657]
[1761332094383,3.227,3913.5,3913.4,0.4657]
[1761332095682,3.227,3913.5,3913.4,0.002]
[1761332095898,3.227,3913.5,3913.4,0.4657]
[1761332097304,3.227,3913.5,3913.4,3.02102273]
[1761332097805,3.227,3913.5,3913.4,0.4657]
[1761332098009,3.227,3913.5,3913.4,3.02102273]
[1761332098685,0.68888553,3914.2,3913.4,0.4632]
[1761332099004,5.0904174,3913.8,3913.4,0.002]
[1761332099200,3.227,3913.7,3913.5,0.4612]
[1761332099709,3.227,3913.7,3913.5,3.01645459]
[1761332099892,3.227,3913.7,3913.6,0.4612]
[1761332101211,3.227,3913.7,3913.6,3.01639215]
[1761332101822,3.227,3913.7,3913.6,0.4612]
[1761332102386,3.227,3913.7,3913.4,0.002]
[1761332102387,2.55525744,3913.5,3913.4,0.002]
[1761332102608,9.20087484,3913.5,3913.4,0.002]
[1761332102913,9.29987484,3913.5,3913.4,0.002]
[1761332103416,9.20087484,3913.5,3913.4,0.002]
[1761332103712,9.87700009,3913.5,3913.4,0.002]
[1761332104698,10.90540594,3913.5,3913.4,0.002]
[1761332108735,11.03340594,3913.5,3913.4,0.002]
[1761332113815,8.4781485,3913.5,3913.4,0.002]
[1761332114213,1.6832,3913.5,3913.4,0.002]
[1761332114427,1.5552,3913.5,3913.4,0.458]
[1761332114631,3.228,3913.5,3913.4,3.01332023]
[1761332115707,3.228,3913.5,3913.4,0.458]
[1761332118238,3.228,3913.5,3913.4,3.01332273]
[1761332119537,3.228,3913.5,3913.4,3.60628917]
[1761332119729,3.228,3913.5,3913.4,3.73428917]
[1761332120554,3.228,3913.5,3913.4,3.14132273]
[1761332122654,0.128,3914.0,3913.4,0.586]
[1761332122854,0.128,3914.3,3913.5,0.456]
[1761332123055,3.227,3914.2,3913.7,0.128]
[1761332123230,3.227,3914.2,3913.7,2.68310537]
[1761332123551,3.227,3914.2,3913.8,3.01104793]
[1761332123958,3.227,3914.2,3913.9,0.456]
[1761332126813,3.227,3914.2,3913.7,2.68311054]
[1761332127485,3.227,3914.2,3913.7,3.13911054]
[1761332127984,6.11882325,3913.9,3913.4,0.002]
[1761332128311,6.24682325,3913.5,3913.4,0.002]
[1761332128603,9.47382325,3913.5,3913.4,0.002]
[1761332128781,12.02908069,3913.5,3913.4,0.002]
[1761332129589,13.58428069,3913.5,3913.4,0.002]
[1761332129790,11.02902325,3913.5,3913.4,0.002]
[1761332131027,4.9102,3913.5,3913.4,0.002]
[1761332131714,7.46545744,3913.5,3913.4,0.002]
[1761332132849,13.58428069,3913.5,3913.4,0.002]
[1761332133029,14.19016069,3913.5,3913.4,0.002]
[1761332135352,14.19016069,3913.5,3912.6,0.002]
[1761332135353,3.06239864,3913.1,3912.6,0.002]
[1761332135556,10.86455251,3912.9,3912.6,0.002]
[1761332135694,2.06208,3912.9,3912.6,0.002]
[1761332135899,4.61772926,3912.9,3912.6,0.002]
[1761332136099,1.5552,3913.2,3912.8,0.458]
[1761332136346,3.227,3913.1,3912.8,0.458]
[1761332136505,5.78256357,3913.1,3912.8,0.458]
[1761332136705,3.227,3913.1,3912.8,0.458]
[1761332136905,5.78252071,3913.1,3912.8,0.458]
[1761332137938,2.55563654,3913.0,3912.8,0.002]
[1761332138153,9.34582325,3913.1,3912.8,0.002]
[1761332138322,2.55564926,3912.9,3912.8,0.002]
[1761332139122,9.34582325,3913.1,3912.8,0.002]
[1761332139426,11.90137302,3913.1,3912.8,0.4686]
[1761332140429,0.2996,3913.6,3912.8,0.4686]
[1761332140430,0.001,3914.5,3912.8,0.4686]
[1761332140634,3.23,3914.1,3912.8,0.4686]
[1761332140838,1.5552,3914.0,3913.2,2.55539609]
[1761332141129,6.11882325,3913.7,3912.8,0.4686]
[1761332141329,3.23,3913.6,3912.8,0.4686]
[1761332141635,5.78520571,3913.6,3912.8,0.4686]
[1761332141935,2.55526127,3913.5,3912.8,0.4686]
[1761332142099,2.55526127,3913.5,3912.8,3.02428731]
[1761332142301,5.78519818,3913.6,3912.9,2.55559191]
[1761332142506,2.55526949,3913.5,3913.0,0.4666]
[1761332142711,5.78519964,3913.6,3913.0,0.4666]
[1761332143733,2.55526152,3913.5,3913.0,0.4666]
[1761332144333,3.23,3913.6,3913.1,2.79021223]
[1761332144840,3.23,3913.6,3913.1,0.2347]
[1761332145006,3.23,3913.6,3913.2,0.4666]
[1761332145201,5.78519881,3913.6,3913.1,0.7013]
[1761332145733,0.128,3913.4,3913.2,0.4666]
[1761332145917,3.23,3913.3,3913.2,0.4666]
[1761332146716,3.23,3913.3,3913.1,2.79020114]
[1761332146717,9.34882325,3913.3,3912.8,0.002]
[1761332146908,9.34882325,3913.3,3912.9,0.4666]
[1761332148109,2.55545738,3913.2,3912.9,0.4666]
[1761332148310,11.90421374,3913.3,3912.9,0.4666]
[1761332148638,9.34882325,3913.3,3912.9,0.4666]
[1761332149430,2.55545333,3913.2,3912.8,0.002]
[1761332149624,2.55545333,3913.2,3912.8,0.4686]
[1761332150331,11.90423403,3913.3,3912.8,0.4686]
[1761332151232,2.55550683,3913.2,3912.8,0.4686]
[1761332151430,11.9042231,3913.3,3912.8,0.4686]
[1761332151742,1.5552,3913.2,3912.8,0.002]
[1761332151915,2.68353967,3913.1,3912.8,0.002]
[1761332152111,3.228,3913.0,3912.8,0.002]
[1761332153631,3.228,3913.0,3912.8,0.4686]
[1761332154038,3.228,3913.0,3912.8,3.0243094]
[1761332154211,3.228,3913.0,3912.8,0.4686]
[1761332154732,3.228,3913.0,3912.8,3.0242667]
[1761332155136,3.228,3913.0,3912.9,3.02224926]
[1761332157112,3.228,3913.0,3912.9,0.4666]
[1761332158135,3.228,3913.0,3912.9,3.02224926]
[1761332159137,3.228,3913.0,3912.9,0.4666]
[1761332159508,3.228,3913.0,3912.9,3.02224926]
[1761332159709,3.228,3913.0,3912.9,0.4666]
[1761332160037,3.228,3913.0,3912.9,3.02224926]
[1761332160219,0.001,3913.6,3912.9,1.16560741]
[1761332160419,0.001,3913.6,3913.5,0.2195]
[1761332160625,0.186,3913.5,3913.4,0.128]
[1761332160824,1.5552,3913.4,3912.9,0.128]
[1761332161215,2.55533095,3913.4,3912.9,0.128]
[1761332161417,2.55533095,3913.4,3912.9,0.5906]
[1761332161418,1.5552,3913.4,3912.9,0.5906]
[1761332161927,1.5552,3913.4,3912.9,0.128]
[1761332162139,1.5552,3913.4,3913.0,0.4626]
[1761332162516,0.314,3913.5,3913.0,0.4626]
[1761332163143,2.55532273,3913.4,3913.0,0.4626]
[1761332163644,6.11882325,3913.3,3912.8,0.002]
[1761332163941,3.228,3913.2,3912.8,0.002]
[1761332164449,3.228,3913.2,3912.9,0.4626]
[1761332164611,3.228,3913.2,3912.9,3.01820406]
[1761332164817,3.228,3913.2,3912.9,0.4626]
[1761332165018,3.228,3913.2,3913.0,0.4626]
[1761332166144,3.229,3913.2,3913.0,0.4626]
[1761332167248,3.229,3913.2,3912.8,0.002]
[1761332167947,3.229,3913.2,3912.8,2.99270225]
[1761332168347,5.0986917,3913.0,3912.8,0.002]
[1761332168547,5.78364926,3912.9,3912.8,0.002]
[1761332168746,6.01364926,3912.9,3912.8,0.002]
[1761332169325,6.52052926,3912.9,3912.8,0.002]
[1761332170324,6.41852926,3912.9,3912.8,0.002]
[1761332170926,3.356,3912.9,3912.8,0.002]
[1761332171242,0.128,3913.0,3912.8,0.437]
[1761332171440,3.228,3912.9,3912.8,0.437]
[1761332173024,5.2266917,3913.0,3912.8,0.437]
[1761332173220,3.228,3912.9,3912.8,0.437]
[1761332173827,0.129,3913.2,3912.9,2.55560999]
[1761332174038,3.228,3913.1,3912.8,0.437]
[1761332174240,3.228,3913.1,3912.9,2.5556321]
[1761332174649,3.228,3913.1,3913.0,0.435]